[Event "45th FIDE Olympiad 2024"]
[Site "Budapest"]
[Date "2024.09.15"]
[Round "5.204"]
[White "Oratile, Kgotlane"]
[Black "Bullen, Alex"]
[Result "0-1"]
[ECO "B10"]
[WhiteElo "1975"]
[BlackElo "2155"]
[PlyCount "198"]
[EventDate "2024.09.05"]
[EventType "team-tourn"]
[EventCountry "HUN"]
[WhiteTeam "Botswana"]
[BlackTeam "Wales"]
[WhiteTeamCountry "BOT"]
[BlackTeamCountry "WLS"]
[TimeControl "40/5400+30:1800+30"]

1. e4 c6 2. d3 d5 3. Nd2 e5 4. Ngf3 Bd6 5. g3 f5 6. Bg2 Nf6 7. exd5 cxd5 8. c4 e4 9. dxe4 dxe4 10. Qe2 O-O 11. Ng5 h6 12. Nh3 Nc6 13. O-O Ng4 14. c5 Bc7 15. Qc4+ Kh8 16. Nb3 Nce5 17. Qc3 Nd3 18. f3 Be5 19. Qc2 Nxc1 20. fxg4 Nxb3 21. axb3 Qd4+ 22. Kh1 Be6 23. Rad1 Qb4 24. gxf5 Bxb3 25. Qd2 Qxd2 26. Rxd2 e3 27. Rd7 e2 28. Re1 Rad8 29. c6 bxc6 30. Bxc6 Rxd7 31. Bxd7 Rd8 32. Rxe2 Bd5+ 33. Kg1 Bd4+ 34. Kf1 Rxd7 35. Re8+ Kh7 36. Nf4 Bf7 37. Rf8 Bxb2 38. Ke2 Bc1 39. Kf3 a5 40. Ra8 Bd2 41. Ke4 g5 42. Ne6 Bxe6 43. fxe6 Re7 44. Kf5 Kg7 45. Rd8 Bb4 46. Ra8 Rb7 47. Ke5 Rb5+ 48. Ke4 h5 49. h3 Bd6 50. g4 h4 51. Ra6 Bb4 52. Kd4 Kf6 53. Rc6 Ke7 54. Ra6 Be1 55. Ke4 Bf2 56. Rc6 Rb6 57. Rc2 Bg3 58. Kf5 Rb5+ 59. Ke4 Kxe6 60. Rc6+ Kd7 61. Ra6 Kc7 62. Kd4 Kb7 63. Rg6 Bf4 64. Kc4 Rb6 65. Rg7+ Ka6 66. Rg8 Rc6+ 67. Kb3 Kb5 68. Ra8 Re6 69. Rd8 Re3+ 70. Ka2 Rxh3 71. Rd5+ Kb4 72. Rd4+ Kc5 73. Ra4 Kb5 74. Rd4 Rg3 75. Rd5+ Kb4 76. Rd4+ Kc5 77. Ra4 Kb5 78. Rd4 h3 79. Rd5+ Kb4 80. Rd4+ Kc5 81. Ra4 Kb5 82. Rd4 h2 83. Rd5+ Kb4 84. Rd4+ Kc5 85. Ra4 Kb5 86. Rd4 Rg2+ 87. Kb3 a4+ 88. Rxa4 Rb2+ 89. Ka3 Ra2+ 90. Kxa2 Kxa4 91. Kb2 h1=Q 92. Kc3 Be5+ 93. Kd3 Qd5+ 94. Ke3 Bf4+ 95. Ke2 Qd2+ 96. Kf3 Qe3+ 97. Kg2 Qe2+ 98. Kg1 Bb8 99. Kh1 Qf1# {0-} 0-1

[Event "45th FIDE Olympiad 2024"]
[Site "Budapest"]
[Date "2024.09.15"]
[Round "5.205"]
[White "Mafaaz, Khalid"]
[Black "Barrish, Daniel"]
[Result "0-1"]
[ECO "E20"]
[WhiteElo "2069"]
[BlackElo "2281"]
[PlyCount "100"]
[EventDate "2024.09.05"]
[EventType "team-tourn"]
[EventCountry "HUN"]
[WhiteTeam "Pakistan"]
[BlackTeam "South Africa"]
[WhiteTeamCountry "PAK"]
[BlackTeamCountry "RSA"]
[TimeControl "40/5400+30:1800+30"]

1. d4 Nf6 2. c4 e6 3. Nc3 Bb4 4. f3 c5 5. d5 b5 6. e4 d6 7. Nge2 bxc4 8. Nf4 e5 9. Nfe2 Nbd7 10. Ng3 Nb6 11. Be2 Ng8 12. O-O Ne7 13. f4 exf4 14. Nh5 O-O 15. Bxf4 Ng6 16. Bg3 Bxc3 17. bxc3 Qe7 18. Re1 Ne5 19. Bf4 Bd7 20. h3 Na4 21. Qd2 Rab8 22. Qe3 f6 23. Bg3 Rb2 24. Nf4 Rfb8 25. Bd1 a5 26. Rf1 R2b7 27. Bc2 Nb2 28. Be1 Be8 29. Qg3 Bg6 30. Bd2 Nbd3 31. Nxg6 hxg6 32. Bd1 Rb2 33. Be3 Rb1 34. Rxb1 Rxb1 35. h4 Qd7 36. h5 g5 37. Qh2 Kh7 38. Qg3 a4 39. a3 Ra1 40. h6 gxh6 41. Qh2 Kg7 42. Qh5 Nb2 43. Be2 Rxf1+ 44. Kxf1 Nbd3 45. Kg1 Qb5 46. Qh3 Qb1+ 47. Kh2 Qe1 48. Bh5 Nf2 49. Bxf2 Qxf2 50. Be8 g4 {0-} 0-1

[Event "45th FIDE Olympiad 2024"]
[Site "Budapest"]
[Date "2024.09.15"]
[Round "5.206"]
[White "Levitan, Caleb Levi"]
[Black "Amer, Karim"]
[Result "1-0"]
[ECO "B30"]
[WhiteElo "2193"]
[BlackElo "2081"]
[PlyCount "127"]
[EventDate "2024.09.05"]
[EventType "team-tourn"]
[EventCountry "HUN"]
[WhiteTeam "South Africa"]
[BlackTeam "Pakistan"]
[WhiteTeamCountry "RSA"]
[BlackTeamCountry "PAK"]
[TimeControl "40/5400+30:1800+30"]

1. e4 c5 2. Nf3 Nc6 3. Bb5 e6 4. d4 cxd4 5. Nxd4 Qb6 6. Nxc6 bxc6 7. Bd3 d5 8. O-O Nf6 9. Nd2 Be7 10. Qe2 O-O 11. b3 a5 12. Bb2 a4 13. c4 a3 14. Be5 Nd7 15. exd5 Nxe5 16. Qxe5 Qa5 17. Qe2 cxd5 18. cxd5 Bf6 19. Nc4 Qc5 20. Rac1 exd5 21. Ne3 Qd6 22. Qh5 g6 23. Qxd5 Qxd5 24. Nxd5 Bb2 25. Rcd1 Ra7 26. Ne3 Be6 27. Bc4 Bc8 28. Rd3 Rc7 29. Rfd1 Kg7 30. Kf1 Bb7 31. Rd7 Rfc8 32. Ke2 Kf8 33. g3 h5 34. Rxf7+ Rxf7 35. Bxf7 Kxf7 36. Rd7+ Ke6 37. Rxb7 Rc1 38. Rb6+ Kf7 39. Ra6 Ra1 40. Nc2 Rxa2 41. Kd1 Kg7 42. h3 Kh6 43. f4 h4 44. g4 Kg7 45. b4 Kf7 46. Kd2 Kg7 47. b5 Bd4 48. Rxa3 Rb2 49. Kc1 Bf6 50. g5 Rxb5 51. Ra7+ Kf8 52. gxf6 Rf5 53. Nd4 Rxf6 54. Kd2 Rb6 55. Ke3 Rb1 56. Kf3 Rg1 57. Ne6+ Kg8 58. Ng5 Rg3+ 59. Ke4 Rb3 60. Ke5 Rb6 61. Ne6 Rb3 62. Kf6 Rg3 63. Ra8+ Kh7 64. Ng5+ 1-0

[Event "45th FIDE Olympiad 2024"]
[Site "Budapest"]
[Date "2024.09.15"]
[Round "5.207"]
[White "Momin, Fayzan"]
[Black "Mhango, Banele"]
[Result "0-1"]
[ECO "E62"]
[WhiteElo "2064"]
[BlackElo "2261"]
[PlyCount "106"]
[EventDate "2024.09.05"]
[EventType "team-tourn"]
[EventCountry "HUN"]
[WhiteTeam "Pakistan"]
[BlackTeam "South Africa"]
[WhiteTeamCountry "PAK"]
[BlackTeamCountry "RSA"]
[TimeControl "40/5400+30:1800+30"]

1. c4 Nf6 2. Nf3 g6 3. g3 Bg7 4. Bg2 O-O 5. O-O c6 6. d4 d6 7. Nc3 Bf5 8. Nh4 Be6 9. d5 cxd5 10. cxd5 Bd7 11. e4 Na6 12. h3 Nc5 13. Rb1 a5 14. a4 Ne8 15. Bd2 Nc7 16. Re1 b5 17. axb5 Nxb5 18. Nxb5 Bxb5 19. b4 axb4 20. Bxb4 Nd3 21. Bf1 Nxb4 22. Bxb5 Na2 23. Qd3 Nc3 24. Rb3 Qa5 25. Nf3 Rfb8 26. Bc4 Rxb3 27. Bxb3 Rb8 28. Nd2 Rb4 29. Qc2 Bd4 30. Kg2 Qc5 31. Rf1 Qb5 32. Re1 h5 33. h4 Qc5 34. Rf1 Bg7 35. Re1 Qb5 36. Re3 Qc5 37. Nf3 Rb8 38. e5 Rc8 39. exd6 exd6 40. Qd3 Rb8 41. Bc4 Na4 42. Bb3 Nc3 43. Bc4 Bf6 44. Nd2 Rb2 45. Ne4 Nxe4 46. Qxe4 Bd4 47. Re2 Rxe2 48. Qxe2 Bxf2 49. Bb5 Bd4 50. Bc6 Be5 51. Qf3 Qc2+ 52. Kh3 Kg7 53. Be8 Qc8+ {0-} 0-1

[Event "45th FIDE Olympiad 2024"]
[Site "Budapest"]
[Date "2024.09.15"]
[Round "5.208"]
[White "Cawdery, Daniel"]
[Black "Mudasir, Iqbal"]
[Result "1-0"]
[ECO "B23"]
[WhiteElo "2356"]
[BlackElo "2055"]
[PlyCount "35"]
[EventDate "2024.09.05"]
[EventType "team-tourn"]
[EventCountry "HUN"]
[WhiteTeam "South Africa"]
[BlackTeam "Pakistan"]
[WhiteTeamCountry "RSA"]
[BlackTeamCountry "PAK"]
[TimeControl "40/5400+30:1800+30"]

1. e4 c5 2. Nc3 Nc6 3. Bb5 g6 4. Bxc6 bxc6 5. f4 Bg7 6. Nf3 d6 7. O-O Nf6 8. d3 O-O 9. Qe1 Rb8 10. Rb1 Re8 11. f5 e5 12. Qh4 Nh5 13. Bg5 Qa5 14. f6 Bf8 15. g4 Nf4 16. Bh6 Bxg4 17. Bxf8 Rxf8 18. Qh6 1-0

[Event "45th FIDE Olympiad 2024"]
[Site "Budapest"]
[Date "2024.09.15"]
[Round "5.209"]
[White "Lam, Daniel King Wai"]
[Black "Arab, Adlane"]
[Result "1-0"]
[ECO "B81"]
[WhiteElo "2088"]
[BlackElo "2477"]
[PlyCount "139"]
[EventDate "2024.09.05"]
[EventType "team-tourn"]
[EventCountry "HUN"]
[WhiteTeam "Hong Kong, China"]
[BlackTeam "Algeria"]
[BlackTeamCountry "ALG"]
[TimeControl "40/5400+30:1800+30"]

1. e4 c5 2. Nf3 e6 3. d4 cxd4 4. Nxd4 Nf6 5. Nc3 d6 6. g4 h6 7. Be3 Nc6 8. Qe2 Nxd4 9. Bxd4 e5 10. Be3 Bxg4 11. f3 Be6 12. O-O-O a6 13. Rg1 Rc8 14. Kb1 Qa5 15. Bd2 Rxc3 16. Bxc3 Qxa2+ 17. Kc1 Nh5 18. Qe3 Qa1+ 19. Kd2 Qa4 20. Qb6 Qd7 21. Kc1 Qc6 22. Qxc6+ bxc6 23. Bxa6 Be7 24. b3 O-O 25. Kb2 f5 26. Bb7 c5 27. Rg6 Nf6 28. Rdg1 Rf7 29. Rxh6 fxe4 30. fxe4 Bd8 31. Bc6 Rc7 32. Ba5 Rxc6 33. Bxd8 Kf7 34. Rhg6 Ne8 35. h4 Rc8 36. Ba5 c4 37. h5 cxb3 38. cxb3 Rb8 39. R1g3 Ke7 40. b4 Bf7 41. R6g5 Nf6 42. Rh3 Nxe4 43. Rxg7 Kf6 44. h6 Ng5 45. Rg3 Ne6 46. R7g4 Nf4 47. Rh4 Bg6 48. Ka3 d5 49. Bc7 Ra8+ 50. Kb3 d4 51. b5 d3 52. Rxf4+ exf4 53. Bxf4 Ra1 54. Bd2 Rb1+ 55. Kc4 Bf5 56. Be3 Ke6 57. Rg2 Be4 58. Rh2 Bh7 59. Kc5 Ke5 60. Rh4 Rb3 61. Rg4 Bf5 62. Rh4 Bh7 63. b6 Rc3+ 64. Rc4 Rb3 65. Rb4 Rc3+ 66. Kb5 d2 67. Bxd2 Bd3+ 68. Ka4 Bc2+ 69. Ka5 Ra3+ 70. Kb5 1-0

[Event "45th FIDE Olympiad 2024"]
[Site "Budapest"]
[Date "2024.09.15"]
[Round "5.210"]
[White "Djabri, Massinas"]
[Black "Chan, Pui Yin Brandon"]
[Result "0-1"]
[ECO "D14"]
[WhiteElo "2280"]
[BlackElo "2016"]
[PlyCount "116"]
[EventDate "2024.09.05"]
[EventType "team-tourn"]
[EventCountry "HUN"]
[WhiteTeam "Algeria"]
[BlackTeam "Hong Kong, China"]
[WhiteTeamCountry "ALG"]
[TimeControl "40/5400+30:1800+30"]

1. d4 d5 2. c4 c6 3. cxd5 cxd5 4. Nc3 Nf6 5. Nf3 Nc6 6. Bf4 Bf5 7. e3 e6 8. Nh4 Be4 9. f3 Nh5 10. Bg3 Bg6 11. Bf2 Be7 12. Nxg6 hxg6 13. Qb3 Qd7 14. g4 Nf6 15. O-O-O Rc8 16. Kb1 Na5 17. Qb5 Nc4 18. Qxd7+ Kxd7 19. Ka1 Bb4 20. Rc1 Ke7 21. g5 Nd7 22. e4 dxe4 23. fxe4 Ndb6 24. Be1 Ne3 25. Be2 Bd6 26. e5 Bb4 27. Bf2 Bxc3 28. bxc3 Nec4 29. h4 Nd5 30. Rhg1 Nf4 31. Bf1 b6 32. Rg4 Nd5 33. Bd3 Rc7 34. Re4 Rhc8 35. Be1 b5 36. h5 gxh5 37. g6 fxg6 38. Bh4+ Kd7 39. Ree1 Nf4 40. Bf1 a6 41. Bg5 Rf8 42. Bxf4 Rxf4 43. Bd3 Rg4 44. Rg1 Ne3 45. Bxg6 Rxc3 46. Bxh5 Rxc1+ 47. Rxc1 Rxd4 48. Rg1 Nf5 49. Bg6 Ne7 50. Bh7 g6 51. Bxg6 Nxg6 52. Rxg6 Re4 53. Kb2 Rxe5 54. a4 bxa4 55. Rg4 Rc5 56. Rxa4 a5 57. Rh4 Kd6 58. Rh8 Kd5 {0-} 0-1

[Event "45th FIDE Olympiad 2024"]
[Site "Budapest"]
[Date "2024.09.15"]
[Round "5.211"]
[White "Chan, Wang Ip Boris"]
[Black "Brahami, Lamine"]
[Result "1-0"]
[ECO "B06"]
[WhiteElo "2017"]
[BlackElo "2188"]
[PlyCount "95"]
[EventDate "2024.09.05"]
[EventType "team-tourn"]
[EventCountry "HUN"]
[WhiteTeam "Hong Kong, China"]
[BlackTeam "Algeria"]
[BlackTeamCountry "ALG"]
[TimeControl "40/5400+30:1800+30"]

1. e4 g6 2. d4 Bg7 3. f4 d6 4. Nf3 c6 5. a4 Bg4 6. c3 d5 7. e5 h5 8. Bd3 Nd7 9. h3 Bxf3 10. Qxf3 e6 11. a5 c5 12. dxc5 Nxc5 13. Bc2 Ne7 14. Be3 Nd7 15. Nd2 Nc6 16. Nb3 b6 17. O-O bxa5 18. c4 Nb4 19. Bb1 Nb6 20. Nxa5 Qc7 21. Rc1 Rc8 22. cxd5 Qxc1+ 23. Bxc1 Rxc1+ 24. Kh2 N6xd5 25. Nb3 Rc4 26. Qe2 Rc7 27. Qb5+ Ke7 28. Be4 Bh6 29. Ra4 Nc2 30. Bxd5 exd5 31. Rxa7 Rxa7 32. Qc5+ Ke8 33. Qc8+ Ke7 34. Qc5+ Ke8 35. Qxa7 Bxf4+ 36. g3 Bxe5 37. Qa8+ Ke7 38. Qxd5 Bxb2 39. Qc5+ Kf6 40. Qxc2 Be5 41. Nc5 Kg7 42. Kg2 Rb8 43. Qe4 Rb2+ 44. Kf3 Bf6 45. Nd7 Rb5 46. Nxf6 Rb3+ 47. Kf4 Kh6 48. h4 1-0

[Event "45th FIDE Olympiad 2024"]
[Site "Budapest"]
[Date "2024.09.15"]
[Round "5.212"]
[White "Bengherabi, Khalil"]
[Black "Li, Yiheng"]
[Result "1-0"]
[ECO "B90"]
[WhiteElo "2076"]
[BlackElo "1893"]
[PlyCount "115"]
[EventDate "2024.09.05"]
[EventType "team-tourn"]
[EventCountry "HUN"]
[WhiteTeam "Algeria"]
[BlackTeam "Hong Kong, China"]
[WhiteTeamCountry "ALG"]
[TimeControl "40/5400+30:1800+30"]

1. e4 c5 2. Nf3 d6 3. d4 cxd4 4. Nxd4 Nf6 5. Nc3 a6 6. h3 e5 7. Nde2 h5 8. g3 Be7 9. Bg2 b5 10. O-O O-O 11. a4 b4 12. Nd5 Nxd5 13. Qxd5 Ra7 14. Be3 Rb7 15. f4 Qc7 16. Qd2 Nd7 17. f5 Nf6 18. c3 d5 19. exd5 Rd8 20. Rac1 Qc4 21. cxb4 Qxb4 22. d6 Bxd6 23. Bxb7 Qxb7 24. Nc3 Qb4 25. Qf2 Bb7 26. Rfd1 Ne4 27. Nxe4 Qxe4 28. Kh2 Kh7 29. Re1 Qxa4 30. Qe2 g6 31. fxg6+ fxg6 32. Qc4 Qd7 33. Rf1 Kg7 34. Rcd1 Qe7 35. Rd2 Rf8 36. Rdf2 Rxf2+ 37. Rxf2 Qd7 38. Bg5 Bc8 39. Bf6+ Kh7 40. Qf1 Bc5 41. Re2 Qf7 42. Rxe5 Bd6 43. Re1 Bb7 44. Be7 Qxf1 45. Rxf1 Be5 46. Bf6 Bxf6 47. Rxf6 Kh6 48. h4 a5 49. Rf7 Bc6 50. Kg1 a4 51. Kf2 Be8 52. Re7 Bb5 53. Ke3 Bc6 54. Kd4 Bf3 55. Kc3 Bd1 56. Kb4 Bb3 57. Ra7 Bd1 58. Rxa4 1-0

[Event "45th FIDE Olympiad 2024"]
[Site "Budapest"]
[Date "2024.09.15"]
[Round "5.213"]
[White "Asabri, Hussien"]
[Black "Mandizha, Farai"]
[Result "1/2-1/2"]
[ECO "D03"]
[WhiteElo "2196"]
[BlackElo "2371"]
[PlyCount "110"]
[EventDate "2024.09.05"]
[EventType "team-tourn"]
[EventCountry "HUN"]
[WhiteTeam "Libya"]
[BlackTeam "Zimbabwe"]
[WhiteTeamCountry "LBY"]
[BlackTeamCountry "ZIM"]
[TimeControl "40/5400+30:1800+30"]

1. d4 Nf6 2. Nf3 g6 3. Bg5 Bg7 4. Nbd2 d5 5. e3 c5 6. c3 Nc6 7. Bd3 Qb6 8. Rb1 O-O 9. O-O Nd7 10. b4 cxd4 11. cxd4 e5 12. b5 Ncb8 13. dxe5 Nxe5 14. Nxe5 Bxe5 15. Nf3 Bg7 16. a4 Be6 17. Be7 Re8 18. Bb4 Nd7 19. a5 Qd8 20. Nd4 Ne5 21. Be2 Rc8 22. a6 b6 23. Rc1 Qh4 24. Bd6 Rxc1 25. Qxc1 Rc8 26. Qd1 Qd8 27. Bxe5 Bxe5 28. Nc6 Qc7 29. f4 Bd6 30. Bf3 Bc5 31. Bxd5 Re8 32. Bxe6 Rxe6 33. f5 Rxe3 34. Kh1 Re8 35. Qf3 Qd7 36. fxg6 hxg6 37. Rd1 Re6 38. h3 Rd6 39. Rxd6 Qxd6 40. Qe2 Qd7 41. Kh2 Kh7 42. g3 Kg8 43. h4 Kh7 44. Qf3 Bd6 45. Kg2 Kg8 46. Qd5 Qg4 47. Qf3 Qd7 48. h5 Bc5 49. Ne5 Qe6 50. hxg6 fxg6 51. Qe4 Kg7 52. Qb7+ Be7 53. Nc6 Qe2+ 54. Kh3 Qf1+ 55. Kh2 Qf2+ 1/2-1/2

[Event "45th FIDE Olympiad 2024"]
[Site "Budapest"]
[Date "2024.09.15"]
[Round "5.214"]
[White "Makoto, Rodwell"]
[Black "Alhassadi, Yousef A."]
[Result "1-0"]
[ECO "E01"]
[WhiteElo "2311"]
[BlackElo "2082"]
[PlyCount "97"]
[EventDate "2024.09.05"]
[EventType "team-tourn"]
[EventCountry "HUN"]
[WhiteTeam "Zimbabwe"]
[BlackTeam "Libya"]
[WhiteTeamCountry "ZIM"]
[BlackTeamCountry "LBY"]
[TimeControl "40/5400+30:1800+30"]

1. Nf3 d5 2. g3 c5 3. Bg2 Nc6 4. O-O Nf6 5. d4 e6 6. c4 Be7 7. a3 Ne4 8. dxc5 Bxc5 9. b4 Be7 10. Bb2 Bf6 11. Qc2 Bxb2 12. Qxb2 Qf6 13. Qxf6 Nxf6 14. cxd5 Nxd5 15. e4 Nb6 16. Nbd2 Ke7 17. Nb3 a6 18. e5 Rd8 19. Rfe1 Rd5 20. Rac1 Bd7 21. Nc5 Rb8 22. Rc2 Be8 23. Nd2 Rdd8 24. Ndb3 Nd5 25. f4 Na7 26. Rd2 Nb5 27. Bxd5 Rxd5 28. Rxd5 exd5 29. a4 Nc3 30. Ra1 b6 31. Nxa6 Rc8 32. a5 bxa5 33. bxa5 Ne2+ 34. Kf2 Rc2 35. Ke1 Nc3 36. Nd2 Ne4 37. Nxe4 dxe4 38. Nb4 Rxh2 39. Ra3 Rb2 40. Nd5+ Kd8 41. a6 Bc6 42. Ne3 Kc7 43. a7 Ba8 44. Nf5 g6 45. Nh6 Rb1+ 46. Kd2 Rb2+ 47. Kc1 Re2 48. Kd1 Rg2 49. Nxf7 1-0

[Event "45th FIDE Olympiad 2024"]
[Site "Budapest"]
[Date "2024.09.15"]
[Round "5.215"]
[White "Naser Eldean, Ahmed"]
[Black "Mwadzura, Roy"]
[Result "1-0"]
[ECO "A08"]
[WhiteElo "1981"]
[BlackElo "2229"]
[PlyCount "105"]
[EventDate "2024.09.05"]
[EventType "team-tourn"]
[EventCountry "HUN"]
[WhiteTeam "Libya"]
[BlackTeam "Zimbabwe"]
[WhiteTeamCountry "LBY"]
[BlackTeamCountry "ZIM"]
[TimeControl "40/5400+30:1800+30"]

1. e4 e6 2. d3 d5 3. Nd2 c5 4. Ngf3 Nc6 5. g3 g6 6. Bg2 Bg7 7. O-O Nge7 8. Re1 a5 9. a4 b6 10. Nf1 Ba6 11. Rb1 Ra7 12. e5 h6 13. h4 Qc7 14. Bf4 g5 15. hxg5 hxg5 16. Nxg5 Ng6 17. Ne3 Ncxe5 18. Nxd5 exd5 19. Bxe5 Nxe5 20. f4 f6 21. Ne6 Qd6 22. fxe5 fxe5 23. Qg4 Bf6 24. Qg6+ Rf7 25. Ng5 Rhf8 26. Bf3 Ke7 27. Nxf7 Rxf7 28. Bh5 Rf8 29. c3 Bc8 30. Rf1 Qe6 31. Qh7+ Kd8 32. Rf2 Rg8 33. Rg2 Bg5 34. Re1 Rf8 35. Qg7 Qf6 36. Qxf6+ Bxf6 37. Rf2 Ke7 38. Bf3 Be6 39. Rh2 Kd6 40. Kg2 Bd7 41. b3 Bf5 42. Rd1 Bg5 43. c4 d4 44. Be4 Be6 45. Rh7 Rg8 46. Rf1 Bf4 47. Rf3 Bd7 48. Kh2 Bg5 49. Rff7 Be6 50. Rc7 Rc8 51. Rcg7 Bf6 52. Rb7 Bd8 53. Rh6 1-0

[Event "45th FIDE Olympiad 2024"]
[Site "Budapest"]
[Date "2024.09.15"]
[Round "5.216"]
[White "Mapuranga, Vitalis"]
[Black "Abugenda, Nagi"]
[Result "1-0"]
[ECO "E32"]
[WhiteElo "2013"]
[BlackElo "1975"]
[PlyCount "77"]
[EventDate "2024.09.05"]
[EventType "team-tourn"]
[EventCountry "HUN"]
[WhiteTeam "Zimbabwe"]
[BlackTeam "Libya"]
[WhiteTeamCountry "ZIM"]
[BlackTeamCountry "LBY"]
[TimeControl "40/5400+30:1800+30"]

1. d4 Nf6 2. c4 e6 3. Nc3 Bb4 4. Qb3 Bxc3+ 5. Qxc3 b6 6. Bg5 Bb7 7. f3 d5 8. cxd5 exd5 9. Rc1 c6 10. Qa3 Qe7 11. Qxe7+ Kxe7 12. e3 Nbd7 13. Bd3 Rhe8 14. h4 Kf8 15. h5 Rac8 16. h6 g6 17. Ne2 c5 18. dxc5 bxc5 19. Kf2 Re6 20. Rhd1 Ne5 21. Bb1 Ned7 22. Rc3 Rb6 23. Rd2 Rd6 24. Ra3 a6 25. Rc3 Rb6 26. Rc1 Ba8 27. Nc3 Re6 28. Na4 Bb7 29. Rdc2 c4 30. Rd2 Rec6 31. Nc3 Rc5 32. Rd4 Re8 33. Bc2 Bc6 34. Bd1 Rc8 35. Be2 Ra5 36. Bf4 Ke7 37. Rcd1 Ke6 38. g4 Rd8 39. Bc7 1-0

[Event "45th FIDE Olympiad 2024"]
[Site "Budapest"]
[Date "2024.09.15"]
[Round "5.217"]
[White "Miguel, Sergio"]
[Black "Pg, Md Omar Ak Hafizon"]
[Result "1-0"]
[ECO "B44"]
[WhiteElo "2241"]
[BlackElo "2159"]
[PlyCount "91"]
[EventDate "2024.09.05"]
[EventType "team-tourn"]
[EventCountry "HUN"]
[WhiteTeam "Angola"]
[BlackTeam "Brunei Darussalam"]
[WhiteTeamCountry "ANG"]
[TimeControl "40/5400+30:1800+30"]

1. e4 c5 2. Nf3 e6 3. d4 cxd4 4. Nxd4 Nc6 5. Nb5 d6 6. c4 Nf6 7. N1c3 Be7 8. Be2 a6 9. Na3 Qc7 10. Be3 b6 11. Rc1 O-O 12. O-O Bb7 13. f4 Nd7 14. Bf3 Bf6 15. Qd2 Nc5 16. Nc2 Bxc3 17. Qxc3 Ne7 18. Bd4 f6 19. e5 dxe5 20. fxe5 f5 21. Bxb7 Qxb7 22. Bxc5 bxc5 23. Rcd1 Rad8 24. a3 Ng6 25. b4 Rxd1 26. Rxd1 f4 27. Ne1 Nh4 28. Nf3 Nf5 29. bxc5 Qc7 30. c6 Qxc6 31. c5 Rc8 32. Rc1 Ne3 33. Qd4 Nd5 34. Qc4 Qb5 35. Qxb5 axb5 36. Nd4 Nc7 37. Rb1 Rb8 38. a4 Na6 39. Nc6 Ra8 40. Rxb5 Kf8 41. Ra5 Ke8 42. Kf2 g5 43. Kf3 h5 44. h4 gxh4 45. Kxf4 Kd7 46. Rxa6 1-0

[Event "45th FIDE Olympiad 2024"]
[Site "Budapest"]
[Date "2024.09.15"]
[Round "5.218"]
[White "Yee, Soon Wei"]
[Black "Silva, David"]
[Result "0-1"]
[ECO "B22"]
[WhiteElo "2219"]
[BlackElo "2363"]
[PlyCount "66"]
[EventDate "2024.09.05"]
[EventType "team-tourn"]
[EventCountry "HUN"]
[WhiteTeam "Brunei Darussalam"]
[BlackTeam "Angola"]
[BlackTeamCountry "ANG"]
[TimeControl "40/5400+30:1800+30"]

1. e4 c5 2. c3 g6 3. d4 d5 4. exd5 Qxd5 5. Nf3 Nf6 6. Na3 Bg7 7. Be3 cxd4 8. Nb5 O-O 9. Qxd4 Nc6 10. Qh4 Qd8 11. Bc4 Bg4 12. O-O Bxf3 13. gxf3 Ne5 14. Be2 a6 15. Rfd1 Qc8 16. Nd4 Rd8 17. c4 Nh5 18. Bg5 h6 19. Bxe7 Re8 20. f4 Nxf4 21. Qxf4 Rxe7 22. Rac1 Qe8 23. Nc2 Nc6 24. Ne3 Re4 25. Qg3 Nd4 26. Bf3 Rc8 27. Nd5 Nf5 28. Qg2 Rexc4 29. Rxc4 Rxc4 30. b3 Rd4 31. Rc1 Nh4 32. Qh3 Qe6 33. Qxe6 Nxf3+ {0-} 0-1

[Event "45th FIDE Olympiad 2024"]
[Site "Budapest"]
[Date "2024.09.15"]
[Round "5.219"]
[White "Junior, Domingos"]
[Black "Lim Teck Guan, Rodney"]
[Result "1/2-1/2"]
[ECO "B19"]
[WhiteElo "2183"]
[BlackElo "1931"]
[PlyCount "94"]
[EventDate "2024.09.05"]
[EventType "team-tourn"]
[EventCountry "HUN"]
[WhiteTeam "Angola"]
[BlackTeam "Brunei Darussalam"]
[WhiteTeamCountry "ANG"]
[TimeControl "40/5400+30:1800+30"]

1. e4 c6 2. d4 d5 3. Nc3 dxe4 4. Nxe4 Bf5 5. Ng3 Bg6 6. Nf3 Nd7 7. h4 h6 8. h5 Bh7 9. Bd3 Bxd3 10. Qxd3 e6 11. Bf4 Qa5+ 12. Bd2 Bb4 13. c3 Be7 14. a3 Ngf6 15. c4 Qc7 16. Ne4 O-O 17. Bc3 Rfd8 18. O-O-O b5 19. Nxf6+ Nxf6 20. Qe2 a5 21. c5 Nd5 22. Bd2 a4 23. Ne5 Bf6 24. Qe4 Bxe5 25. dxe5 Qe7 26. Bb4 Rd7 27. f4 Rad8 28. g3 Nxb4 29. axb4 Rxd1+ 30. Rxd1 Rxd1+ 31. Kxd1 Qd7+ 32. Ke2 Qd5 33. Qxd5 exd5 34. Kf3 Kf8 35. Kg4 Ke7 36. Kf5 Kd7 37. g4 Ke7 38. g5 hxg5 39. fxg5 g6+ 40. hxg6 fxg6+ 41. Kxg6 d4 42. Kh6 d3 43. g6 d2 44. g7 d1=Q 45. g8=Q Qh1+ 46. Kg7 Qg2+ 47. Kh8 Qxb2 1/2-1/2

[Event "45th FIDE Olympiad 2024"]
[Site "Budapest"]
[Date "2024.09.15"]
[Round "5.220"]
[White "Akmal, Ahmad"]
[Black "Domingos, Catarino"]
[Result "0-1"]
[ECO "E91"]
[WhiteElo "1830"]
[BlackElo "2229"]
[PlyCount "86"]
[EventDate "2024.09.05"]
[EventType "team-tourn"]
[EventCountry "HUN"]
[WhiteTeam "Brunei Darussalam"]
[BlackTeam "Angola"]
[BlackTeamCountry "ANG"]
[TimeControl "40/5400+30:1800+30"]

1. e4 g6 2. d4 Bg7 3. Nf3 d6 4. Be2 c6 5. c4 Nf6 6. Nc3 O-O 7. O-O a6 8. h3 b5 9. Qb3 Nbd7 10. Be3 e5 11. Rfd1 Re8 12. cxb5 axb5 13. Ng5 Rf8 14. dxe5 dxe5 15. Rac1 Qe7 16. a4 b4 17. Na2 c5 18. Bb5 h6 19. Nf3 Bb7 20. Nd2 Rfd8 21. f3 Bf8 22. Nc4 Qe6 23. Qc2 Ba6 24. Bxa6 Rxa6 25. b3 Rc8 26. Rd3 Nh5 27. Qd2 Ndf6 28. Bxh6 Bxh6 29. Qxh6 Nf4 30. Rd2 N6h5 31. Rcd1 Raa8 32. Nc1 Qf6 33. Ne3 Rd8 34. Ng4 Qe7 35. Kh2 Rxd2 36. Rxd2 Rd8 37. Rc2 Qh4 38. Ne3 Qg3+ 39. Kh1 Qe1+ 40. Kh2 Qxe3 41. Qg5 Rd2 42. Rxd2 Qxd2 43. Qg4 Qxc1 {0-} 0-1

[Event "45th FIDE Olympiad 2024"]
[Site "Budapest"]
[Date "2024.09.15"]
[Round "5.221"]
[White "Mfune, Petros"]
[Black "Mwali, Chitumbo"]
[Result "*"]
[ECO "C91"]
[WhiteElo "1986"]
[BlackElo "2312"]
[PlyCount "99"]
[EventDate "2024.09.05"]
[EventType "team-tourn"]
[EventCountry "HUN"]
[WhiteTeam "Malawi"]
[BlackTeam "Zambia"]
[WhiteTeamCountry "MWI"]
[BlackTeamCountry "ZAM"]
[TimeControl "40/5400+30:1800+30"]

1. e4 e5 2. Nf3 Nc6 3. Bb5 a6 4. Ba4 Nf6 5. O-O b5 6. Bb3 Be7 7. Re1 O-O 8. c3 d6 9. d4 Bg4 10. d5 Na5 11. Bc2 Qc8 12. Nbd2 c6 13. b4 Nb7 14. c4 Qc7 15. dxc6 Nd8 16. cxb5 axb5 17. Bb2 Nxc6 18. a3 Qb6 19. Bd3 Rfe8 20. Qe2 Rab8 21. Qe3 Qb7 22. h3 Bd7 23. Bf1 Bd8 24. Qd3 Bc7 25. Nb3 Nh5 26. Bc1 Nd8 27. g3 Ne6 28. Nxe5 dxe5 29. Qxd7 Red8 30. Qe7 Nxg3 31. Bg2 Nh5 32. Nc5 Nxc5 33. Qxc5 Rd6 34. Be3 Rg6 35. Qd5 Qc8 36. Kf1 Qe8 37. Qd1 Nf4 38. Bxf4 exf4 39. Rc1 Be5 40. Rc5 Rd6 41. Rd5 Ra6 42. Qb3 Rba8 43. Qd3 Rxa3 44. Qxb5 Qxb5+ 45. Rxb5 f6 46. Kg1 Bd4 47. Rd1 Ra1 48. Rxa1 Rxa1+ 49. Bf1 Rb1 50. Rb7 *

[Event "45th FIDE Olympiad 2024"]
[Site "Budapest"]
[Date "2024.09.15"]
[Round "5.222"]
[White "Kayonde, Andrew"]
[Black "Mwale, Joseph"]
[Result "1-0"]
[ECO "E48"]
[WhiteElo "2338"]
[BlackElo "2063"]
[PlyCount "69"]
[EventDate "2024.09.05"]
[EventType "team-tourn"]
[EventCountry "HUN"]
[WhiteTeam "Zambia"]
[BlackTeam "Malawi"]
[WhiteTeamCountry "ZAM"]
[BlackTeamCountry "MWI"]
[TimeControl "40/5400+30:1800+30"]

1. d4 Nf6 2. c4 e6 3. Nc3 Bb4 4. e3 d5 5. cxd5 exd5 6. Bd3 O-O 7. Nge2 Bd6 8. Nf4 Bxf4 9. exf4 Re8+ 10. Ne2 b6 11. b4 Nc6 12. Rb1 Nxd4 13. Bxh7+ Kxh7 14. Qxd4 Re4 15. Qd2 Qe8 16. f3 Re7 17. Kf2 Ba6 18. Ng3 Qb5 19. Bb2 Rae8 20. Be5 Nd7 21. Nf5 Nxe5 22. fxe5 Rxe5 23. Qg5 Rxf5 24. Qxf5+ Kg8 25. Rhe1 Re2+ 26. Kg3 c6 27. Rbc1 g6 28. Qf6 Bb7 29. Rcd1 Qc4 30. h4 Qxa2 31. Rxe2 Qxe2 32. h5 gxh5 33. Rh1 Qe6 34. Qd8+ Kg7 35. Rxh5 1-0